bitfinex/quotes_ETHUSD_20250722
["timestamp","ask_amount","ask_price","bid_price","bid_amount"]
[1753189353803,3.15855422,3706.1,3706.0,4.133]
[1753189354887,2.69839984,3705.9,3705.8,0.1344]
[1753189355617,2.69824224,3706.2,3705.8,1.07382]
[1753189355920,2.69811367,3706.3,3705.9,0.4311]
[1753189356123,2.69804982,3706.4,3705.9,0.4311]
[1753189356326,2.69826106,3706.1,3705.9,0.4311]
[1753189356626,2.69804982,3706.4,3706.0,0.29261286]
[1753189356627,2.69821112,3706.2,3706.0,0.29261286]
[1753189356821,2.83236648,3706.5,3706.0,0.29261286]
[1753189357030,2.69823437,3706.2,3706.0,0.29261286]
[1753189357334,2.69823437,3706.2,3706.0,1.04841286]
[1753189357634,2.69786022,3706.7,3706.2,0.7558]
[1753189357834,2.69786022,3706.7,3706.2,2.54230542]
[1753189358010,0.4603,3706.6,3706.3,4.132]
[1753189358201,3.002,3707.1,3706.3,4.132]
[1753189358202,2.69803582,3706.4,3706.3,4.132]
[1753189358402,2.69816069,3706.3,3706.1,4.2664]
[1753189358610,2.69818142,3706.2,3706.1,4.2664]
[1753189359140,2.69813818,3706.3,3706.1,4.2664]
[1753189359437,0.4603,3706.4,3706.1,0.1344]
[1753189359638,2.69813408,3706.3,3706.2,4.132]
[1753189359837,0.4603,3706.4,3706.2,4.132]
[1753189360339,2.6979033,3706.6,3706.2,4.132]
[1753189360907,2.83224407,3706.7,3706.2,4.132]
[1753189361413,0.4603,3706.6,3706.2,4.132]
[1753189361614,2.69801669,3706.5,3706.2,4.132]
[1753189361963,3.15819413,3706.6,3706.2,4.132]
[1753189362247,2.69764279,3707.0,3706.3,0.8094]
[1753189362404,3.0,3707.0,3706.5,2.83231454]
[1753189362605,3.0,3707.0,3706.6,0.4311]
[1753189362805,0.002,3707.1,3706.6,3.12898024]
[1753189363064,0.002,3707.1,3706.8,0.822]
[1753189363341,2.69764531,3707.0,3706.8,0.822]
[1753189363544,0.002,3707.1,3706.8,0.822]
[1753189363911,2.69765594,3707.0,3706.8,0.822]
[1753189364111,0.002,3707.1,3706.8,0.822]
[1753189364656,0.002,3707.1,3706.9,0.60621794]
[1753189365423,0.002,3707.1,3706.9,0.74061794]
[1753189367020,0.002,3707.1,3707.0,4.131]
[1753189367246,0.002,3707.1,3707.0,4.5621]
[1753189367832,0.002,3707.1,3707.0,4.131]
[1753189369389,0.002,3707.1,3707.0,5.82453383]
[1753189369570,0.002,3707.1,3707.0,8.52213296]
[1753189369741,0.002,3707.1,3707.0,12.65653296]
[1753189370073,0.002,3707.1,3707.0,8.65653296]
[1753189370253,0.002,3707.1,3707.0,13.36653296]
[1753189370655,0.002,3707.1,3707.0,14.17163296]
[1753189371443,0.002,3707.1,3707.0,9.46163296]
[1753189373064,0.002,3707.1,3707.0,13.46163296]
[1753189373978,0.002,3707.1,3707.0,13.00723296]
[1753189374865,0.002,3707.1,3707.0,8.87623296]
[1753189375139,0.002,3707.1,3707.0,5.23913383]
[1753189375395,0.002,3707.1,3707.0,4.0]
[1753189375578,0.002,3707.1,3707.0,4.48137599]
[1753189375895,0.002,3707.1,3707.0,7.95097512]
[1753189376096,0.002,3707.1,3707.0,7.92399913]
[1753189376862,0.002,3707.1,3707.0,17.2982576]
[1753189377062,0.002,3707.1,3707.0,19.3584733]
[1753189380485,0.002,3707.1,3707.0,19.9084733]
[1753189381263,0.002,3707.1,3707.0,19.3574733]
[1753189381802,0.002,3707.1,3707.0,13.65881483]
[1753189382166,0.002,3707.1,3707.0,6.8322157]
[1753189382368,3.16282636,3707.1,3707.0,4.0]
[1753189382618,3.99182636,3707.1,3707.0,4.0]
[1753189382910,2.69808841,3706.4,3705.8,0.001]
[1753189383121,3.52711247,3706.3,3705.9,8.129]
[1753189383419,0.4633,3706.2,3706.0,1.16119798]
[1753189383628,0.4633,3706.1,3705.9,8.129]
[1753189383908,3.16162703,3706.0,3705.9,8.129]
[1753189384078,0.4633,3706.0,3705.9,8.129]
[1753189384280,0.4633,3706.0,3705.9,4.0]
[1753189384607,0.4633,3706.0,3705.8,4.13]
[1753189384985,2.69820222,3706.2,3705.8,4.13]
[1753189385194,2.83260222,3706.2,3705.8,4.13]
[1753189385506,0.4633,3706.1,3705.8,4.13]
[1753189385671,0.4633,3706.1,3705.8,4.82630884]
[1753189385876,0.4633,3706.1,3705.8,4.96070884]
[1753189386770,2.69839984,3705.9,3705.8,0.001]
[1753189387392,3.16169984,3705.9,3705.8,0.001]
[1753189387808,0.4633,3705.9,3705.8,0.001]
[1753189388310,3.16169984,3705.9,3705.8,0.001]
[1753189388874,0.4633,3705.9,3705.8,0.001]
[1753189389314,0.1344,3706.1,3705.8,0.001]
[1753189389473,0.1344,3706.5,3706.0,6.11197084]
[1753189389675,0.7935,3707.0,3706.4,6.11197084]
[1753189389876,0.5997,3707.1,3706.5,0.02697963]
[1753189390092,0.5997,3707.1,3706.5,2.72492645]
[1753189390298,0.1364,3707.1,3706.5,2.72490262]
[1753189390617,0.1364,3707.1,3706.7,2.69780811]
[1753189390914,2.83397689,3707.1,3706.7,4.13]
[1753189391087,0.1364,3707.1,3706.7,4.13]
[1753189391425,0.4633,3707.0,3706.7,4.13]
[1753189391590,0.002,3707.1,3706.8,2.72472212]
[1753189391773,0.002,3707.1,3706.8,2.72467795]
[1753189391973,0.002,3707.1,3706.8,2.69770051]
[1753189392275,0.002,3707.1,3707.0,0.1344]
[1753189392713,0.002,3707.1,3707.0,2.83199913]
[1753189393009,0.002,3707.1,3707.0,2.85897512]
[1753189393238,0.002,3707.1,3707.0,0.1344]
[1753189394115,0.002,3707.1,3707.0,2.83199913]
[1753189394482,0.002,3707.1,3707.0,3.60434904]
[1753189394818,0.002,3707.1,3707.0,12.21472503]
[1753189395119,0.002,3707.1,3707.0,12.18774904]
[1753189395488,0.002,3707.1,3707.0,11.73334904]
[1753189395704,0.002,3707.1,3707.0,7.60434904]
[1753189396021,0.002,3707.1,3707.0,11.73334904]
[1753189396336,0.002,3707.1,3707.0,9.03574991]
[1753189396616,0.002,3707.1,3707.0,11.73334904]
[1753189397998,0.002,3707.1,3707.0,9.03574991]
[1753189398193,0.002,3707.1,3707.0,11.73334904]
[1753189398822,0.002,3707.1,3707.0,9.03574991]
[1753189399308,0.4667,3707.1,3707.0,4.90674991]
[1753189399518,0.002,3707.1,3707.0,9.03574991]
[1753189399726,0.002,3707.1,3707.0,5.03574991]
[1753189400654,2.69952636,3707.1,3707.0,0.1344]
[1753189400935,3.16422636,3707.1,3707.0,0.1344]
[1753189401311,2.6976719,3706.9,3706.8,4.71]
[1753189401517,3.1623719,3706.9,3706.8,4.71]
[1753189402836,0.1364,3707.1,3706.8,5.24304286]
[1753189403135,2.69958035,3707.1,3706.9,4.129]
[1753189403338,0.4647,3707.0,3706.8,4.8444]
[1753189403637,2.6976719,3706.9,3706.8,4.71]
[1753189403838,3.1623719,3706.9,3706.8,4.71]
[1753189404053,0.4647,3706.9,3706.7,4.129]
[1753189404203,2.69779293,3706.8,3706.6,0.1344]
[1753189404403,0.7868,3707.1,3706.7,4.129]
[1753189404602,2.69769019,3706.9,3706.7,4.129]
[1753189404917,2.69781746,3706.7,3706.6,4.2634]
[1753189405118,3.16251746,3706.7,3706.6,8.2634]
[1753189405320,0.4647,3706.7,3706.6,4.1344]
[1753189405756,0.4647,3706.7,3706.6,0.1344]
[1753189406040,0.4647,3706.7,3706.4,4.129]
[1753189406247,2.69778955,3706.8,3706.4,4.129]
[1753189406543,0.4647,3706.6,3706.3,0.1344]
[1753189406845,2.69839984,3705.9,3705.8,0.1354]
[1753189407060,3.16309984,3705.9,3705.8,0.38627766]
[1753189407357,3.93259984,3705.9,3705.8,0.25187766]
[1753189407556,4.06699984,3705.9,3705.8,0.25187766]
[1753189407719,1.3686,3705.9,3705.8,0.25187766]
[1753189407920,4.06699984,3705.9,3705.8,0.25187766]
[1753189409627,1.3686,3705.9,3705.8,0.25187766]
[1753189409829,4.129,3706.3,3705.8,0.25187766]
[1753189410027,4.129,3706.3,3705.9,0.25087766]
[1753189410233,2.69825422,3706.1,3706.0,0.25087766]
[1753189410783,3.16295422,3706.1,3706.0,0.25087766]
[1753189410983,5.24580275,3706.1,3706.0,0.25087766]
[1753189411288,2.69839984,3705.9,3705.8,0.001]
[1753189411489,2.69839984,3705.9,3705.8,4.25188461]
[1753189411630,7.29209984,3705.9,3705.8,0.25187772]
[1753189411829,8.4994201,3705.9,3705.8,0.25187772]
[1753189412394,8.4994201,3705.9,3705.8,0.18762542]
[1753189412730,12.3278201,3705.9,3705.8,0.18762542]
[1753189413435,26.8278201,3705.9,3705.8,0.18762542]
[1753189414961,2.69898248,3705.1,3705.0,0.001]
[1753189415161,7.89358073,3705.1,3705.0,0.001]
[1753189415329,5.65929825,3705.1,3705.0,0.001]
[1753189415660,1.53029825,3705.1,3705.0,0.001]
[1753189415862,8.35828073,3705.1,3705.0,0.001]
[1753189416440,5.65929825,3705.1,3705.0,0.001]
[1753189416648,8.35828073,3705.1,3705.0,0.001]
[1753189416853,11.35828073,3705.1,3705.0,0.001]
[1753189417574,25.85828073,3705.1,3705.0,0.001]
[1753189418070,3.24912818,3704.9,3704.8,0.001]
[1753189418262,5.24307906,3704.9,3704.8,0.001]
[1753189418640,9.83677906,3704.9,3704.8,0.001]
[1753189419173,12.83677906,3704.9,3704.8,0.001]
[1753189419372,42.83677906,3704.9,3704.8,0.001]
[1753189419668,12.83677906,3704.9,3704.8,0.001]
[1753189419860,12.83777906,3704.9,3704.8,0.001]
[1753189420972,7.9615,3704.9,3704.8,0.001]
[1753189421192,4.13,3704.9,3704.8,0.001]
[1753189421669,6.82912818,3704.9,3704.8,0.001]
[1753189421871,3.4647,3704.9,3704.8,0.001]
[1753189422104,10.29382818,3704.9,3704.8,0.001]
[1753189422957,13.79731994,3704.9,3704.8,0.001]
[1753189425060,7.13,3704.9,3704.8,0.001]
[1753189425438,3.0,3704.9,3704.8,0.001]
[1753189425638,14.5,3704.9,3704.8,0.001]
[1753189425858,18.63,3704.9,3704.8,0.001]
[1753189426238,4.13,3704.9,3704.8,0.001]
[1753189426569,4.5947,3704.9,3704.8,0.001]
[1753189426771,14.5,3705.0,3704.8,0.001]
[1753189426938,4.13,3704.9,3704.8,0.001]
[1753189427139,4.13,3704.9,3704.8,0.25054228]
[1753189427549,0.7901,3705.7,3704.8,0.25054228]
[1753189427748,0.1344,3705.4,3705.0,0.8226]
[1753189427954,4.13,3705.3,3705.1,3.09913847]
[1753189428172,6.475,3705.8,3705.2,0.6825193]
[1753189428479,0.1344,3705.6,3705.3,2.94833015]
[1753189428674,1.15371775,3705.9,3705.4,0.6825193]
[1753189428675,4.13,3705.7,3705.4,0.6825193]
[1753189428976,4.13,3705.7,3705.3,0.02698836]
[1753189428977,5.41811775,3705.9,3705.5,4.20040589]
[1753189429184,5.41811775,3705.9,3705.6,0.2495193]
[1753189429344,2.69849305,3705.8,3705.7,0.2496633]
[1753189429539,7.27809305,3705.8,3705.7,0.2496633]
[1753189429775,8.40455284,3705.8,3705.7,0.2496633]
[1753189430074,12.20295284,3705.8,3705.7,0.2496633]
[1753189431139,2.69854548,3705.7,3704.8,0.001]
[1753189431346,2.69905533,3705.0,3704.9,0.25002536]
[1753189431573,6.82905533,3705.0,3704.9,0.25002536]
[1753189431878,7.27865533,3705.0,3704.9,0.25002536]
[1753189432077,9.80625496,3705.0,3704.9,0.25002536]
[1753189432575,12.80625496,3705.0,3704.8,0.001]
[1753189432781,46.7867652,3704.9,3704.8,1e-08]
[1753189433106,6.50031113,3704.1,3704.0,0.001]
[1753189433244,10.92836963,3704.1,3704.0,0.001]
[1753189433587,11.37796963,3704.1,3704.0,0.001]
[1753189433796,25.87796963,3704.1,3704.0,0.001]
[1753189434353,6.5197027,3703.7,3703.6,0.001]
[1753189434696,2.70022141,3703.4,3703.1,0.001]
[1753189434894,10.9566812,3703.4,3703.1,0.001]
[1753189435284,11.4062812,3703.4,3703.3,1e-08]
[1753189435484,12.1781812,3703.4,3703.3,1e-08]
[1753189435926,26.6781812,3703.4,3703.3,1e-08]
[1753189436785,27.2281812,3703.4,3703.3,1e-08]
[1753189438320,2.70051309,3703.0,3702.9,1e-08]
[1753189438564,7.63001309,3703.0,3702.9,1e-08]
[1753189438850,8.07961309,3703.0,3702.9,1e-08]
[1753189439222,3.25058602,3702.9,3702.8,1e-08]
[1753189439424,37.63308602,3702.9,3702.8,1e-08]
[1753189439727,52.43114452,3702.9,3702.8,1e-08]
[1753189440358,22.43114452,3702.9,3702.8,1e-08]
[1753189440553,21.13348602,3702.9,3702.8,1e-08]
[1753189440849,25.26448602,3702.9,3702.8,1e-08]
[1753189441151,25.71408602,3702.9,3702.8,1e-08]
[1753189441528,26.26408602,3702.9,3702.8,1e-08]
[1753189442221,56.26408602,3702.9,3702.8,1e-08]
[1753189442422,57.68860431,3702.9,3702.8,1e-08]
[1753189443137,27.68860431,3702.9,3702.8,1e-08]
[1753189443814,57.68860431,3702.9,3702.8,1e-08]
[1753189444772,6.25087778,3702.5,3702.4,0.001]
[1753189444941,11.29811052,3702.5,3702.4,0.001]
[1753189445341,25.79811052,3702.5,3702.4,0.001]
[1753189445549,26.24771052,3702.5,3702.4,0.001]
[1753189445775,22.11571052,3702.5,3702.4,0.001]
[1753189445998,26.24771052,3702.5,3702.4,0.001]
[1753189447676,27.58421052,3702.5,3702.4,1e-08]
[1753189448386,57.58421052,3702.5,3702.4,1e-08]
[1753189448542,2.70130307,3702.0,3701.1,0.001]
[1753189448743,2.70233752,3700.5,3700.4,0.001]
[1753189448965,5.7027027,3700.0,3699.9,1e-08]
[1753189449165,9.8517027,3700.0,3699.9,1e-08]
[1753189449566,11.72582099,3700.0,3699.9,1e-08]
[1753189450799,11.28722099,3700.0,3699.9,1e-08]
[1753189450993,11.73682099,3700.0,3699.9,1e-08]
[1753189451311,12.28682099,3700.0,3699.9,1e-08]
[1753189451513,43.09092099,3700.0,3699.9,1e-08]
[1753189452079,50.07628409,3700.0,3699.9,1e-08]
[1753189452518,2.70468534,3697.3,3697.1,0.1352]
[1753189452679,2.70482269,3697.1,3697.0,0.8259]
[1753189452886,0.1352,3697.2,3697.0,0.8259]
[1753189453077,4.165,3697.1,3697.0,0.8259]
[1753189453315,0.1352,3697.2,3697.0,0.8259]
[1753189453478,0.7736,3698.6,3697.1,0.46004822]
[1753189453684,0.7736,3699.1,3697.5,2.70449916]
[1753189453921,3.0,3698.9,3697.6,0.70344992]
[1753189454214,0.90973926,3699.1,3697.6,0.70344992]
[1753189454215,3.0,3698.7,3697.6,0.433]
[1753189454418,3.0,3698.7,3697.2,0.7736]
[1753189454419,3.0,3698.5,3697.2,1.2066]
[1753189454617,5.70397574,3698.3,3697.2,1.2066]
[1753189454818,3.0,3698.1,3697.2,0.7736]
[1753189454994,4.173,3698.0,3697.2,0.7736]
[1753189455195,3.0,3697.9,3697.2,1.1214354]
[1753189455398,4.175,3697.8,3697.3,2.70467177]
[1753189455706,4.174,3697.7,3697.4,0.433]
[1753189455911,0.4496,3698.6,3697.4,0.433]
[1753189455912,4.174,3697.6,3697.4,0.433]
[1753189456312,4.174,3697.6,3697.2,0.7736]
[1753189456819,4.175,3697.7,3697.6,2.70445694]
[1753189457024,3.0,3698.7,3697.6,0.24928617]
[1753189457220,0.6703097,3698.7,3697.8,2.70431067]
[1753189457397,4.176,3698.6,3698.2,2.70400575]
[1753189457595,4.176,3698.5,3698.3,0.2491545]
[1753189457799,0.7736,3699.1,3698.4,0.2491545]
[1753189457997,2.70372573,3698.6,3698.5,0.2491545]
[1753189458210,8.16455626,3698.6,3698.5,0.2491545]
[1753189458409,8.71455626,3698.6,3698.5,0.2491545]
[1753189458811,3.98755626,3698.6,3698.5,0.2491545]
[1753189458988,4.2167,3699.1,3698.5,0.2491545]
[1753189459186,3.0,3698.9,3698.6,0.2491545]
[1753189459389,3.0,3698.8,3698.7,0.2491545]
[1753189459589,9.88357953,3698.8,3698.7,0.2491545]
[1753189459824,10.32667953,3698.8,3698.7,0.2491545]
[1753189460023,12.25705159,3698.8,3698.7,0.2491545]
[1753189460686,7.52705159,3698.8,3698.7,0.2491545]
[1753189460895,9.88457953,3698.8,3698.7,0.2491545]
[1753189461089,4.183,3698.8,3698.7,0.2491545]
[1753189461293,1.2167,3699.1,3698.7,0.2491545]
[1753189461490,4.183,3699.0,3698.8,0.2491545]
[1753189461801,1.2167,3699.1,3698.5,5.0]
[1753189461802,2.70372573,3698.6,3698.5,5.0]
[1753189462001,11.6628083,3698.6,3698.5,5.24969993]
[1753189462402,7.186,3698.6,3698.5,5.24969993]
[1753189462604,2.41018531,3699.8,3698.6,0.7728]
[1753189462828,4.19,3699.7,3698.7,0.70349993]
[1753189463023,3.0,3699.0,3698.8,0.24969993]
[1753189463227,3.0,3699.0,3698.6,0.7728]
[1753189463228,4.19,3698.9,3698.6,0.7728]
[1753189463534,0.1344,3699.0,3698.7,2.95348264]
[1753189463707,4.19,3698.8,3698.7,0.4538]
[1753189463913,4.19,3698.8,3698.7,0.2498417]
[1753189464093,6.89357953,3698.8,3698.7,0.2498417]
[1753189465023,4.19,3698.8,3698.7,0.2498417]
[1753189465227,6.89357953,3698.8,3698.7,0.2498417]
[1753189465560,10.85328166,3698.8,3698.7,0.2498417]
[1753189465764,3.1344,3698.7,3698.5,5.0]
[1753189465961,4.19,3698.6,3698.5,5.4538]
[1753189466127,4.19,3698.6,3698.5,5.0]
[1753189466524,6.89372573,3698.6,3698.5,5.0]
[1753189466782,4.19,3698.6,3698.5,5.0]
[1753189467436,6.89372573,3698.6,3698.5,5.0]
[1753189467765,8.30999667,3698.6,3698.5,5.0]
[1753189468134,7.86689667,3698.6,3698.5,5.0]
[1753189468457,9.89372573,3698.6,3698.5,5.0]
[1753189468662,0.1344,3698.7,3698.5,5.0]
[1753189468837,2.70365263,3698.7,3698.6,1.2138]
[1753189469041,6.90065263,3698.7,3698.6,0.76]
[1753189469260,4.197,3698.7,3698.6,0.76]
[1753189469746,6.90065263,3698.7,3698.6,0.76]
[1753189470062,4.197,3698.7,3698.6,1.46417336]
[1753189470267,4.197,3698.7,3698.6,1.2138]
[1753189470570,6.89965263,3698.7,3698.6,1.2138]
[1753189470780,0.1344,3698.8,3698.6,1.2138]
[1753189470926,4.196,3698.7,3698.6,1.2138]
[1753189471353,4.196,3698.7,3698.6,0.76]
[1753189471763,4.195,3698.7,3698.6,0.76]
[1753189471966,6.89865263,3698.7,3698.6,0.76]
[1753189472582,6.89765263,3698.7,3698.6,0.76]
[1753189472766,2.70365263,3698.7,3698.5,5.0]
[1753189472972,2.70372573,3698.6,3698.5,5.0]
[1753189473283,6.14682573,3698.6,3698.5,5.0]
[1753189473992,5.70372573,3698.6,3698.5,5.0]
[1753189474285,9.89672573,3698.6,3698.5,5.0]
[1753189474603,2.70415041,3698.1,3697.8,0.804]
[1753189474941,2.70445756,3697.6,3697.3,0.001]
[1753189475069,4.191,3697.5,3697.3,0.001]
[1753189475418,4.196,3697.5,3697.4,0.4538]
[1753189475718,4.197,3697.5,3697.4,0.4538]
[1753189476125,2.70383441,3698.5,3697.4,0.4538]
[1753189476126,4.197,3697.7,3697.4,0.4538]
[1753189476406,5.15755082,3697.7,3697.3,0.001]
[1753189476581,2.70447093,3697.6,3697.3,0.001]
[1753189476768,2.70453008,3697.5,3697.3,0.001]
[1753189476972,0.4431,3698.1,3697.3,0.001]
[1753189477176,3.0,3697.9,3697.4,0.4538]
[1753189477374,2.70403392,3698.2,3697.5,0.4538]
[1753189477705,7.197,3698.1,3697.5,0.4538]
[1753189477905,0.4431,3698.6,3697.5,0.4538]
[1753189477906,4.196,3698.0,3697.5,0.4538]
[1753189478091,4.196,3697.9,3697.8,2.70431067]
[1753189478291,4.196,3697.9,3697.8,0.4538]
[1753189478493,4.196,3698.0,3697.9,2.70422202]
[1753189478675,0.002,3698.7,3698.0,2.70415097]
[1753189478875,4.197,3698.6,3698.0,2.70415097]
[1753189479077,3.0,3698.5,3697.9,0.4538]
[1753189480096,5.70381289,3698.5,3697.7,3.4827586]
[1753189480284,3.0,3698.6,3697.7,1.44250865]
[1753189480479,6.89981041,3698.5,3697.8,0.4538]
[1753189481127,6.89981041,3698.5,3697.8,3.15810192]
[1753189481304,4.196,3698.4,3697.9,2.70422019]
[1753189481501,4.196,3698.4,3698.0,0.4538]
[1753189482017,6.899889,3698.4,3697.9,0.1352]
[1753189482321,4.196,3698.4,3697.9,0.589]
[1753189482815,4.196,3698.4,3698.0,0.4538]
[1753189483323,0.1344,3698.5,3698.0,3.15795811]
[1753189483485,4.194,3698.3,3697.9,0.1352]
[1753189483688,4.193,3698.2,3697.9,0.1352]
[1753189484216,4.193,3698.2,3697.7,0.7784]
[1753189484386,0.1352,3698.1,3697.7,0.7784]
[1753189485117,0.1352,3698.1,3697.8,0.25281224]
[1753189485320,0.1352,3698.1,3697.9,0.25281224]
[1753189485521,0.1352,3698.1,3698.0,0.2529371]
[1753189485817,3.1352,3698.1,3698.0,0.2529371]
[1753189486017,5.83929129,3698.1,3698.0,0.2529371]
[1753189486193,6.75164327,3698.1,3698.0,0.2529371]
[1753189486517,7.19474327,3698.1,3698.0,0.2529371]
[1753189487297,2.70409129,3698.1,3698.0,0.2529371]
[1753189487512,9.89709129,3698.1,3698.0,0.2529371]
[1753189488421,3.0,3698.1,3698.0,0.2529371]
[1753189488622,3.0,3698.1,3698.0,1.5281371]
[1753189488831,3.002,3698.7,3698.0,1.5281371]
[1753189489003,2.7038006,3698.5,3698.1,0.2529371]
[1753189489321,2.7038006,3698.5,3698.2,0.2529371]
[1753189489522,2.7038006,3698.5,3698.3,0.2529371]
[1753189489724,2.7038006,3698.5,3698.4,0.2529371]
[1753189490122,9.8968006,3698.5,3698.4,0.2529371]
[1753189490639,12.70954626,3698.5,3698.4,0.2529371]
[1753189490839,8.06444626,3698.5,3698.4,0.2529371]
[1753189491148,9.8968006,3698.5,3698.4,0.2529371]
[1753189491547,3.0,3698.5,3698.4,0.2529371]
[1753189491706,4.193,3698.5,3698.4,0.2529371]
[1753189491906,3.0,3698.6,3698.4,0.2529371]
[1753189492107,0.002,3698.7,3698.6,0.7748]
[1753189492308,7.195,3698.7,3698.6,1.0277371]
[1753189493340,9.89865263,3698.7,3698.6,1.0277371]
[1753189493542,9.89865263,3698.7,3698.6,0.2529371]
[1753189494320,7.195,3698.7,3698.6,0.2529371]
[1753189494709,9.89865263,3698.7,3698.6,0.2529371]
[1753189494917,11.61096865,3698.7,3698.6,0.2529371]
[1753189495866,11.60996865,3698.7,3698.6,0.2529371]
[1753189498059,12.15996865,3698.7,3698.6,0.2529371]
[1753189498975,12.15996865,3698.7,3698.0,0.001]
[1753189498976,4.08039129,3698.1,3698.0,0.001]
[1753189499282,11.27039129,3698.1,3698.0,0.001]
[1753189499419,12.66783107,3698.1,3698.0,0.001]
[1753189499619,13.11993107,3698.1,3698.0,0.001]
[1753189500966,9.89809129,3698.1,3698.0,0.001]
[1753189501143,7.194,3698.1,3698.0,0.001]
[1753189501515,7.6461,3698.1,3698.0,0.001]
[1753189501734,7.194,3698.1,3698.0,0.001]
[1753189502329,0.002,3698.7,3698.0,0.001]
[1753189502523,4.193,3698.6,3698.0,0.001]
[1753189502917,3.0,3698.5,3698.0,0.001]
[1753189503145,0.002,3698.7,3698.3,2.70390155]
[1753189503330,0.002,3698.7,3698.4,0.4721]
[1753189503531,4.194,3698.6,3698.5,3.47269883]
[1753189503736,0.002,3698.7,3698.6,2.70372573]
[1753189503940,0.002,3698.7,3698.6,3.17582573]
[1753189504144,4.196,3698.7,3698.6,3.17582573]
[1753189504533,0.002,3698.7,3698.6,3.17582573]
[1753189505049,0.002,3698.7,3698.6,3.94472573]
[1753189505257,0.002,3698.7,3698.6,4.70337254]
[1753189505845,0.002,3698.7,3698.6,4.67633529]
[1753189506722,0.002,3698.7,3698.6,4.70337254]
[1753189506925,1e-08,3698.7,3698.6,4.70337254]
[1753189507264,1e-08,3698.7,3698.6,5.25337254]
[1753189507558,1e-08,3698.7,3698.6,5.22633529]
[1753189508456,1e-08,3698.7,3698.6,8.25337254]
[1753189508654,1e-08,3698.7,3698.6,8.22633529]
[1753189508843,1e-08,3698.7,3698.6,8.36073529]
[1753189509856,1e-08,3698.7,3698.6,12.36073529]
[1753189513156,1e-08,3698.7,3698.6,11.81073529]
[1753189513344,1e-08,3698.7,3698.6,15.99673529]
[1753189513548,0.1344,3699.7,3698.7,2.70365263]
[1753189513748,0.1344,3699.7,3699.3,2.7031621]
[1753189513937,0.1344,3699.7,3699.4,0.25215078]
[1753189514138,0.1344,3699.7,3699.5,0.25215078]
[1753189514332,0.1344,3699.7,3699.6,0.25215078]
[1753189515133,2.83732185,3699.7,3699.6,0.25215078]
[1753189515529,3.03102185,3699.7,3699.6,0.25215078]
[1753189515955,3.60440215,3699.7,3699.6,0.25215078]
[1753189516354,3.41070215,3699.7,3699.6,0.25215078]
[1753189516735,18.10440215,3699.7,3699.6,0.25215078]
[1753189516931,14.6344,3699.7,3699.6,0.25215078]
[1753189517332,0.1344,3699.7,3699.6,1.55455078]
[1753189517565,0.1344,3700.9,3699.7,0.8325]
[1753189517763,0.1344,3700.9,3700.3,0.1344]
[1753189517961,0.1937,3700.8,3700.4,0.25215078]
[1753189518163,14.5,3700.9,3700.5,0.25215078]
[1753189518329,0.1344,3700.6,3700.3,2.70246006]
[1753189518669,0.1344,3700.8,3700.7,2.70214333]
[1753189518828,0.002,3701.2,3701.1,2.70189943]
[1753189519029,0.002,3701.2,3701.1,2.95389865]
[1753189519268,0.002,3701.2,3701.1,3.42379865]
[1753189519962,0.002,3701.2,3701.1,3.45081764]
[1753189520165,0.002,3701.2,3701.1,4.173479]
[1753189521537,0.002,3701.2,3701.1,4.96519799]
[1753189522556,1e-08,3701.2,3701.1,5.51519799]
[1753189522866,1e-08,3701.2,3701.1,5.488179]
[1753189527459,1e-08,3701.2,3701.1,8.488179]
[1753189527660,0.002,3702.0,3701.9,3.45801554]
[1753189527865,0.002,3702.0,3701.9,4.35296962]
[1753189528186,0.002,3702.0,3701.9,5.50726962]
[1753189528484,0.002,3702.0,3701.9,5.48025647]
[1753189528876,0.002,3702.0,3701.9,8.48025647]
[1753189530088,0.002,3702.0,3701.9,12.48025647]
[1753189530288,0.002,3702.0,3701.9,11.93025647]
[1753189530587,0.002,3702.0,3701.9,4.38639922]
[1753189530951,0.002,3702.0,3701.9,0.38639922]
[1753189531152,0.4546,3702.0,3701.9,0.25199922]
[1753189531357,0.002,3702.0,3701.9,2.95331476]
[1753189531575,0.802,3702.0,3701.9,0.25199922]
[1753189533396,0.1344,3702.2,3702.0,4.198]
[1753189533561,0.1344,3702.2,3702.1,0.25199922]
[1753189534479,15.087,3702.2,3702.1,0.25199922]
[1753189534678,17.43589326,3702.2,3702.1,0.25199922]
[1753189535170,16.98329326,3702.2,3702.1,0.25199922]
[1753189535381,2.48329326,3702.2,3702.1,0.25199922]
[1753189535701,4.18,3702.5,3702.1,0.25199922]
[1753189535864,14.5,3702.3,3702.2,0.25199922]
[1753189536317,0.1344,3702.5,3702.3,2.70095676]
[1753189536468,3.0,3702.6,3702.4,0.25199922]
[1753189536866,19.6074,3702.7,3702.4,0.25199922]
[1753189536867,0.9274,3702.7,3702.4,0.25199922]
[1753189537169,0.1344,3702.7,3702.5,2.70085208]
[1753189537682,0.1344,3702.7,3702.1,1.4055]
[1753189537878,0.587,3702.7,3702.1,1.91395]
[1753189538069,0.587,3702.7,3702.2,2.70108509]
[1753189538514,0.1344,3702.7,3702.4,2.70090705]
[1753189538673,0.1344,3702.7,3702.5,2.95091621]
[1753189538872,0.1344,3702.7,3702.6,0.25006683]
[1753189539277,4.178,3702.9,3702.7,2.7006618]
[1753189539484,4.178,3702.9,3702.8,0.25006683]
[1753189539677,14.5,3703.0,3702.8,0.25006683]
[1753189539880,0.1344,3703.1,3703.0,2.70051309]
[1753189540124,0.1344,3703.3,3703.0,2.95057992]
[1753189540324,15.3098,3703.6,3703.2,2.70036724]
[1753189540501,15.3098,3703.6,3703.3,0.25006683]